Cogmind - Beta 14 @@@ ROGUE MODE // 2024.09.09 @ 17:53:01 Player: Null_error Result: Destroyed by Y-54 Guardian with Flak Gun Performance ------------- Evolutions (0) 0 Regions Visited (4) 800 Robots Destroyed (37) 185 Value Destroyed (572) 572 Prototype IDs (0) 0 Alien Tech Used (0) 0 Bonus (-17) -17 TOTAL SCORE: 1540 Bonus ------- Friendly Fire -17 Cogmind --------- Core Integrity 0/250 Matter 280/300 Energy 100/100 System Corruption 0% Temperature Cool (36) Movement Rolling (145) Ox3 Location -7/Recycling Parts ------- > --- POWER (1) -------- (None) > --- PROPULSION (2) --- Armored Huge Wheel > --- UTILITY (2) ------ Huge Storage Unit Structural Scanner > --- WEAPON (2) ------- Battle Cannon Ripper > --- INVENTORY (25) --- Light Ion Engine Light Deuterium Engine Medium Treads Subdweller Monowheel Flight Unit Cooling System Coolant Injector Small Storage Unit Sensor Array Seismic Detector Armor Integrity Analyzer ECM Suite System Restoration Module Bore Cannon Dirty Datajack (20) Mining Claw Chainsword Peak State ------------ > --- POWER ------------ Light Ion Engine > --- PROPULSION ------- Armored Huge Wheel > --- UTILITY ---------- Huge Storage Unit Signal Interpreter > --- WEAPON ----------- Battle Cannon Ripper > --- INVENTORY -------- Light Ion Engine Light Deuterium Engine Medium Treads Subdweller Monowheel Flight Unit Cooling System Small Storage Unit Structural Scanner Sensor Array Seismic Detector Armor Integrity Analyzer ECM Suite System Restoration Module Bore Cannon Dirty Datajack Mining Claw Chainsword [Rating: 21] Favorites ----------- Power Light Ion Engine Engine Light Ion Engine Propulsion Aluminum Leg Treads Medium Treads Leg Aluminum Leg Wheel Armored Huge Wheel Flight Unit Flight Unit Utility Small Storage Unit Device Structural Scanner Storage Small Storage Unit Processor Signal Interpreter Weapon Ripper Energy Gun EM Pulse Gun Ballistic Gun Light Assault Rifle Ballistic Cannon Battle Cannon Launcher Rocket Launcher Special Weapon Mining Laser Slashing Weapon Ripper Build | -11 -10 -10 -10 -7 ------- Run | Yrd Mat Min Sub Rec Slots Evolved . | . . . . . Power . | . . . . . Propulsion . | . . . . . Utility . | . . . . . Weapon . | . . . . . Parts Attached 61 | 8 5 33 11 4 Power 7 | 1 . 4 2 . Engine 7 | 1 . 4 2 . Core . | . . . . . Reactor . | . . . . . Propulsion 24 | 2 . 16 4 2 Treads 1 | . . . . 1 Leg 6 | 2 . 3 1 . Wheel 14 | . . 10 3 1 Hover . | . . . . . Flight 3 | . . 3 . . Utility 11 | 3 1 5 . 2 Device 7 | 2 1 3 . 1 Storage 3 | 1 . 1 . 1 Processor 1 | . . 1 . . Hackware . | . . . . . Protection . | . . . . . Artifact . | . . . . . Weapon 19 | 2 4 8 5 . Energy Gun 4 | . 1 3 . . Energy Cannon . | . . . . . Ballistic Gun 6 | 2 3 1 . . Ballistic Cannon 3 | . . 1 2 . Launcher 3 | . . 2 1 . Special Weapon 1 | . . . 1 . Impact Weapon . | . . . . . Slashing Weapon 2 | . . 1 1 . Piercing Weapon . | . . . . . Special Melee Weapon . | . . . . . Unidentified Prototypes . | . . . . . Parts Lost 11 | . . 5 5 1 Power 3 | . . 1 1 1 Propulsion 4 | . . 2 2 . Utility . | . . . . . Weapon 4 | . . 2 2 . Highest Loss Streak 5 | . . 5 2 1 To Critical Strikes . | . . . . . Average Slot Usage (%) 92 | . 96 96 94 85 Engine 13 | . 14 12 13 14 Leg 10 | . 28 16 2 . Wheel 9 | . . 7 14 14 Flight 1 | . . 1 7 . Device 7 | . 14 12 . 2 Storage 14 | . 14 14 14 14 Processor 6 | . . 1 14 11 Energy Gun 5 | . 3 12 . . Ballistic Gun 2 | . 21 1 3 . Ballistic Cannon 8 | . . 4 12 14 Slashing Weapon 9 | . . 8 6 14 Peak Build Rating 21 | 9 8 14 18 21 Average Rating 13 | 7 7 9 12 20 On Entrance 7 | . 6 7 11 12 Naked Turns . | . . . . . Heaviest Build 90 | 12 12 21 22 90 Greatest Support 36 | 20 20 26 36 28 Greatest Overweight (x) 4 | . . 3 1 4 Average Overweight (x) 1 | . . . . 2 Largest Inventory Capacity 25 | 8 8 8 8 25 Average Capacity 13 | 7 8 8 8 24 Most Carried 18 | 5 8 8 8 18 Average Carried 10 | 3 7 7 7 16 Final Capacity 25 | 8 8 8 8 25 Final Carried 17 | 5 8 8 7 17 Class Distribution -------------------- 69% | Mutant 30% | Scavenger-Mutant Dominant Class ---------------- Mutant | -10/Materials Mutant | -10/Mines Scavenger-Mutant | -10/Subcaves Mutant | -7/Recycling Resources | -11 -10 -10 -10 -7 ----------- Run | Yrd Mat Min Sub Rec Matter Collected 1186 | 345 121 418 150 152 Remotely . | . . . . . Salvage Created 890 | 191 254 234 211 . Parts 76 | 19 26 18 13 . Haulers Intercepted . | . . . . . Recyclers Shooed 8 | . 7 1 . . Parts Field Recycled . | . . . . . Retrieved Matter . | . . . . . Parts Self-Destructed 17 | . . . 17 . Prevented . | . . . . . Kills | -11 -10 -10 -10 -7 ------- Run | Yrd Mat Min Sub Rec Combat Hostiles Destroyed 20 | . 3 7 10 . Melee 5 | . . 1 4 . Guns 8 | . 3 5 . . Cannons 3 | . . 1 2 . AOE 4 | . . . 4 . Classes Destroyed 10 | 3 3 3 1 . Worker 5 | 2 3 . . . Builder 1 | . 1 . . . Tunneler 6 | 5 . 1 . . Recycler 3 | 1 1 1 . . Watcher 3 | . 3 . . . Swarmer 11 | . 3 3 5 . Grunt 2 | . . 2 . . Demolisher 1 | . . 1 . . Subdweller 5 | . . . 5 . Assembled 1 | . . 1 . . Best Kill Streak 7 | 7 6 3 4 . Combat Bots Only 4 | . 2 3 4 . Max Kills in Single Turn 2 | 1 1 1 2 . Gunslinging . | . . . . . Exploded 2 | . . . 2 . Melee 1 | . . 1 1 . Uniques/NPCs Destroyed . | . . . . . Combat | -11 -10 -10 -10 -7 -------- Run | Yrd Mat Min Sub Rec Hostile Shots Fired 153 | . 12 43 62 36 Missed 45 | . 3 12 21 9 Damage Taken 1309 | . 65 640 430 174 Core 250 | . . 112 101 37 Absorbed by Shields . | . . . . . Core Remaining (%) 100 | 100 . . . . Volleys Fired 122 | 35 41 25 18 3 Largest 2 | 2 2 2 2 1 Hottest 100 | 40 60 80 100 39 Shots Fired 185 | 45 79 34 24 3 Gun 143 | 45 79 19 . . Cannon 26 | . . 10 13 3 Launcher 15 | . . 5 10 . Special 1 | . . . 1 . Kinetic 142 | 45 71 10 13 3 Thermal 1 | . . . 1 . Explosive 15 | . . 5 10 . Electromagnetic 27 | . 8 19 . . Robot Hit Streak 7 | 4 7 3 3 4 Robot Miss Streak 5 | 5 5 3 2 . Penetration Max . | . . . . . Secondary Targets . | . . . . . Shots Hit Robots 104 | 22 42 23 12 5 Core Hits 55 | 10 22 12 11 . Critical Kills 2 | 1 . 1 . . Critical Parts Destroyed 2 | . . 2 . . Critical Strikes 6 | 1 . 3 2 . Destroy 6 | 1 . 3 2 . Melee Attacks 21 | . . 8 11 2 Impact . | . . . . . Slashing 21 | . . 8 11 2 Piercing . | . . . . . Sneak Attacks 4 | . . 3 . 1 Combat Hostiles . | . . . . . Follow-up Attacks . | . . . . . Damage Inflicted 2113 | 203 385 623 720 182 Guns 708 | 203 385 120 . . Cannons 273 | . . 78 121 74 Explosions 483 | . . 26 457 . Melee 631 | . . 381 142 108 Ramming 18 | . . 18 . . Kinetic 790 | 203 314 78 121 74 Thermal . | . . . . . Explosive 483 | . . 26 457 . Electromagnetic 191 | . 71 120 . . Impact . | . . . . . Slashing 631 | . . 381 142 108 Piercing . | . . . . . Highest Corruption . | . . . . . Average Corruption . | . . . . . Corruption Purged . | . . . . . Corruption Blocked . | . . . . . Overload Shots . | . . . . . Overflow Damage 111 | . . 65 12 34 Projectiles . | . . . . . Explosions . | . . . . . Melee 111 | . . 65 12 34 Knockbacks 1 | . . 1 . . Impact . | . . . . . Kinetic 1 | . . 1 . . Secondary . | . . . . . Self-Inflicted Damage 108 | . . 40 68 . Shots 6 | . . 3 3 . Rammed 3 | . . 3 . . Targets Rammed 8 | . . 8 . . Kicked 5 | . . 5 . . Crushed . | . . . . . Highest Temperature 73 | . 40 73 . 20 Average Temperature 24 | . 18 28 . 17 Received Heat Transfer 207 | . . 84 69 54 Siege Activations . | . . . . . Robots Corrupted . | . . . . . Combat Hostiles . | . . . . . Parts Fried . | . . . . . Impact Corruptions . | . . . . . Robots Melted . | . . . . . Combat Hostiles . | . . . . . Parts Melted . | . . . . . Heat Transferred . | . . . . . Parts Sabotaged . | . . . . . Parts Stolen . | . . . . . Parts Stripped . | . . . . . Power Chain Reactions . | . . . . . Alert | -11 -10 -10 -10 -7 ------- Run | Yrd Mat Min Sub Rec Peak Influence 202 | 40 202 85 . 129 Initial 129 | . 26 . . 129 Average 30 | 23 115 16 . 27 Maximum Alert Level 1 | . 1 . . . Low Security (%) 99 | 100 91 100 . 100 Level 1 . | . 8 . . . Level 2 . | . . . . . Level 3 . | . . . . . Level 4 . | . . . . . Level 5 . | . . . . . High Security . | . . . . . Max Security . | . . . . . Squads Dispatched . | . . . . . Investigation . | . . . . . Extermination . | . . . . . Reinforcement . | . . . . . Assault . | . . . . . Garrison . | . . . . . Intercept . | . . . . . Searches Triggered . | . . . . . Construction Impeded . | . . . . . Haulers Reinforced . | . . . . . Active Scanning Responses . | . . . . . Cargo Convoy Interrupts . | . . . . . Stealth | -11 -10 -10 -10 -7 --------- Run | Yrd Mat Min Sub Rec Distress Signals 2 | . 1 1 . . Communications Jammed . | . . . . . Distress Signals . | . . . . . Times Spotted 42 | . 9 9 23 1 Peak Tracking Total 6 | . 3 3 6 1 Tactical Retreats 7 | . . 2 5 . Traps | -11 -10 -10 -10 -7 ------- Run | Yrd Mat Min Sub Rec Traps Triggered . | . . . . . Indirectly . | . . . . . Trap Hack Attempts . | . . . . . Triggered . | . . . . . Disarmed . | . . . . . Reprogrammed . | . . . . . Reused . | . . . . . Traps Extracted . | . . . . . Installed . | . . . . . Triggered 2 | . . . 2 . Most Traps Carried 2 | . . 2 . . Machines | -11 -10 -10 -10 -7 ---------- Run | Yrd Mat Min Sub Rec Machines Disabled 1 | . . 1 . . Max in Single Turn 1 | . . 1 . . Machines Repaired . | . . . . . Machines Dismantled . | . . . . . Machines Sabotaged . | . . . . . Overloaded Fab Kills . | . . . . . Hacking | -11 -10 -10 -10 -7 --------- Run | Yrd Mat Min Sub Rec Machines Accessed 4 | . . . . 4 Terminals 4 | . . . . 4 Fabricators . | . . . . . Repair Stations . | . . . . . Recycling Units . | . . . . . Scanalyzers . | . . . . . Garrison Access . | . . . . . Total Hacks 6 | . . . . 6 Successful 1 | . . . . 1 Failed 5 | . . . . 5 Catastrophic 2 | . . . . 2 Database Lockouts . | . . . . . Manual 5 | . . . . 5 Terminals 6 | . . . . 6 Fabricators . | . . . . . Repair Stations . | . . . . . Recycling Units . | . . . . . Scanalyzers . | . . . . . Garrison Access . | . . . . . Terminal Hacks 1 | . . . . 1 Record 1 | . . . . 1 Fabricator Hacks . | . . . . . Repair Station Hacks . | . . . . . Recycling Unit Hacks . | . . . . . Scanalyzer . | . . . . . Garrison Access Hacks . | . . . . . Unauthorized Hacks . | . . . . . Terminals . | . . . . . Fabricators . | . . . . . Repair Stations . | . . . . . Recycling Units . | . . . . . Scanalyzers . | . . . . . Garrison Access . | . . . . . Data Cores Recovered . | . . . . . Used . | . . . . . Hacking Detections 4 | . . . . 4 Full Trace Events 1 | . . . . 1 Feedback Events . | . . . . . Feedback Blocked . | . . . . . Robot Schematics Acquired . | . . . . . Robots Built . | . . . . . Authchips . | . . . . . Time . | . . . . . Total Robot Build Rating . | . . . . . Part Schematics Acquired . | . . . . . Parts Built . | . . . . . Authchips . | . . . . . Time . | . . . . . Total Part Build Rating . | . . . . . Parts Repaired . | . . . . . Time . | . . . . . Parts Recycled . | . . . . . Recycled Matter . | . . . . . Retrieved Matter . | . . . . . Retrieved Components . | . . . . . Parts Scanalyzed . | . . . . . Part Schematics Acquired . | . . . . . Parts Damaged . | . . . . . Bothacking | -11 -10 -10 -10 -7 ------------ Run | Yrd Mat Min Sub Rec Used RIF Installer . | . . . . . Robots Hacked . | . . . . . Non-combat . | . . . . . Combat . | . . . . . Robot Hacks Applied . | . . . . . Relay Couplers Released . | . . . . . Fabnet Peak Effective % . | . . . . . Robots Rewired . | . . . . . Allies Hacked . | . . . . . Hacks Repelled . | . . . . . Allies | -11 -10 -10 -10 -7 -------- Run | Yrd Mat Min Sub Rec Total Allies . | . . . . . Largest Group . | . . . . . Highest-Rated Group . | . . . . . Highest-Rated Ally . | . . . . . Total Orders . | . . . . . Ally Attacks . | . . . . . Total Damage . | . . . . . Kills . | . . . . . Allies Corrupted . | . . . . . Allies Melted 1 | . . 1 . . Intel | -11 -10 -10 -10 -7 ------- Run | Yrd Mat Min Sub Rec Robot Analysis Total . | . . . . . Derelict Logs Recovered 2 | . . 1 1 . Drone Launches . | . . . . . Drone Recoveries . | . . . . . Exploration | -11 -10 -10 -10 -7 ------------- Run | Yrd Mat Min Sub Rec Turns Passed 5308 | 260 414 2257 531 1846 Spaces Moved 3483 | 146 234 1450 393 1260 Core 77 | 7 . 70 . . Treads . | . . . . . Legs 1129 | 139 234 756 . . Wheels 2251 | . . 598 393 1260 Hover . | . . . . . Flight 26 | . . 26 . . Fastest Speed 50 | 50 120 80 100 110 Average Speed 128 | 116 120 123 108 143 Slowest Speed 260 | 120 120 260 120 150 Overloaded Moves . | . . . . . Propulsion Burnouts . | . . . . . Robots Hopped . | . . . . . Cave-ins Triggered . | . . . . . Exploration Rate (%) 50 | 5 30 101 25 91 Regions Visited 4 Branch Regions 3 Pre-discovered Areas 2 | . . 1 1 . Known Exits Taken 2 | . . 1 1 . Unknown Exits Taken 2 | 1 1 . . . Scrap Searched 1 | . . 1 . . Spaces Dug 2 | . . . 2 . Terrain Destroyed 118 | . . 47 71 . Melee 2 | . . . 2 . Projectile 13 | . . 10 3 . AOE 103 | . . 37 66 . Terrain Rammed . | . . . . . Walls Destroyed . | . . . . . Machines Disabled . | . . . . . Actions | -11 -10 -10 -10 -7 --------- Run | Yrd Mat Min Sub Rec Total 4113 | 194 302 1871 451 1295 Wait 370 | . 15 323 16 16 Move 3479 | 145 233 1449 392 1260 Hop . | . . . . . Pick Up 24 | 5 4 6 1 8 Fast Attach 16 | 6 3 3 2 2 Attach 6 | 1 . 3 2 . Detach 5 | 1 1 1 . 2 Swap 39 | 1 2 27 7 2 Drop 23 | . 3 18 2 . Fire 122 | 35 41 25 18 3 Melee 21 | . . 8 11 2 Ram 3 | . . 3 . . Kick 5 | . . 5 . . Crush . | . . . . . Escape Stasis . | . . . . . Rewire . | . . . . . Trap . | . . . . . Miscellaneous . | . . . . . Route ------- -11/Scrapyard -10/Materials -10/Mines (discovered 3 exits: *Mat x2 / *Sub) -10/Subcaves (discovered 2 exits: *Mat / *Rec) -7/Recycling (discovered 1 exit: *Fac) History --------- Turn | Location | Event 16 | -11/Scrapyard | Discovered new exit (range 16) 261 | -11/Scrapyard | Entered Materials 300 | -10/Materials | Build established: Mutant 529 | -10/Materials | Discovered new exit (range 15) 675 | -10/Materials | Entered Mines 704 | -10/Mines | Met a Derelict bent on vengeance 954 | -10/Mines | Found a hidden stash of uninstalled traps 1194 | -10/Mines | Assembled infested the area 1199 | -10/Mines | Assisted by a Guerilla fighting off Assembled 1254 | -10/Mines | Learned location of Mines (-8) 1567 | -10/Mines | A weapon hastily lodged in a ceiling crevice suddenly fell to the ground 1571 | -10/Mines | Lost 5 parts (1p2n2w) 1641 | -10/Mines | Received a Rocket Launcher from a helpful Derelict 2073 | -10/Mines | Discovered new exit (range 10) 2141 | -10/Mines | Discovered new exit (range 11) 2242 | -10/Mines | Build established: Scavenger-Mutant 2612 | -10/Mines | Discovered new exit (range 7) 2628 | -10/Mines | Identified exit to Subcaves 2763 | -10/Mines | Identified exit to Materials 2932 | -10/Mines | Entered Subcaves 3068 | -10/Subcaves | Core integrity fell below 50% 3095 | -10/Subcaves | Learned location of Zion (-6) 3095 | -10/Subcaves | Discovered new exit (range 10) 3128 | -10/Subcaves | Identified exit to Materials 3173 | -10/Subcaves | Shifting Twisted Machinery released Piercing Trap 3179 | -10/Subcaves | Shifting Twisted Machinery released Mak. Leg 3412 | -10/Subcaves | Discovered new exit (range 9) 3420 | -10/Subcaves | Core integrity fell below 20% 3462 | -10/Subcaves | Identified exit to Recycling 3463 | -10/Subcaves | Entered Recycling 3464 | -7/Recycling | Met a Zionite searching for Scraptown 3710 | -7/Recycling | Discovered new exit (range 8) 3720 | -7/Recycling | Identified exit to Factory 3850 | -7/Recycling | Build established: Mutant 5309 | -7/Recycling | Destroyed by Y-54 Guardian with Flak Gun Last Messages --------------- 03544_ Acquired Arm. Huge Wheel. 03548_ Acquired Cooling System. 03554_ Acquired 82 matter. 03573_ Acquired ECM Suite. 03581_ Acquired Mining Claw. 03710_ EXIT=FOUND 03720_ EXIT=IDENTIFIED: FACTORY 03747_ Acquired 56 matter. 03759_ Acquired System Restoration Module. 03764_ Acquired Armor Integrity Analyzer. 03777_ Acquired Chainsword. 03784_ Acquired Lgt. Deuterium Engine. 03848_ Acquired 14 matter. 03859_ Acquired Coolant Injector. 04139_ Connecting with Terminal... 04966_ Discarded Signal Interpreter. 05014_ Sneak attack on U-05 Engineer. 05014_ Destroyed Welding Torch. 05300_ Y-54 Guardian springs to life. 05309_ Lgt. Ion Engine destroyed. Map ----- +----------------------------------------------------+ | ######## ## # """ | | ??????## ## ########### # """ " " | | ??????########## #?????????####### "Y" | | ??? ??########## #???????????????# """ | | ?? ????#####?## ###??????????????# | | ?????#"""#??# ""#??????????????############# | | ????###"T"#### Y"#??####????????????????????? | | ??????# # ""##########?????????????????? | | ??????#""" + ####### ####?????????????????? | | ??#""" # ""## ##??????#####??????? | | ??#""" # Y"## #################### | | ???????# # ""## ########## ######### | | ???????#""" # #### # + ## | | ???????#""" # ### # # ## | | ???????#""" # #### # # # | | ???????# # #?## # + ## | | ????#####"T"##### #?## # ## ## | | ##??#"""#"""#???# #?## # ## ## | | #####"Y"######### #### # ## ## | | ""## + ## ## | | ################# Y"## # ## ## | | ??# ! ## ""## # ## ## | | ??# | ## ########### ## ## | | ??# ## ########### ## ## | | ### # ###Y###### ########+####### | | ### # "" % @ u | | # ! + T" % | | # # r r | | # # # ############/#########"Y"## | | # ####### ######## #####"""## | | # ####### ##????## """"##??###### | | # ! ! #????## ######## """"##???##### | | # #????## ######## """"##???????? | | ##########+###????## + """"##???????? | | ########## ######### ######## ##???????? | | ##### ### ######## ######## ""T"" ##???????? | | ##????## """"" ##???????? | | Y"####"Y"## ###########????#############???????? | | ""####"""################????#############???????? | | ################?????????????????????????????????? | | ###########??????????????????????????????????????? | | ?????????????????????????????????????????????????? | | | | | | | | | | | | | | | | | +----------------------------------------------------+ Best States ------------- Heat Dissipation 25 Energy Generation 15 Energy Capacity 200 Matter Stores 300 Matter Capacity 300 Sight Range 16 Robot Scan Range 14 Terrain Scan Range 16 Terrain Scan Density 10 Evasion (%) 55 Item Schematics ----------------- None Robot Schematics ------------------ None Fabricated ------------ Nothing Alien Tech Used ----------------- None Achievements -------------- None Challenges ------------ None Game ------ Seed LobotomyFusionRedistributor Manual? 0 Play Time 00:33:55 Cumulative 30.6 hours Start 2024.09.09 @ 17:19:48 End 2024.09.09 @ 17:53:01 Sessions 3 Manual Loads 0 Difficulty Rogue Special Mode None Game No. 35 Rogue 35 Adventurer 0 Explorer 0 Win Type - Total 0 Types 0/0/0/0/0/0/0/0/0 Lore% 18 Gallery% 34 Achievement% 24 Wizard Run 0 Options --------- Layout 2 ASCII 0 Keyboard 1 Movement Numpad Keybinds 0 Fullscreen 2 Font 24/Smallcaps Map View 50x44 Zoom Use 0% Tactical HUD 1 Map Filters NONE Filters LOW_CONTRAST(5,20,15) Steam 1 RUN: 40af8441-91fa-4a6a-a71f-4e89dc25366b